[Event "EYTCC Open U18 2022"]
[Site "Thessaloniki"]
[Date "2022.07.14"]
[Round "3.7"]
[White "Wernberg, Hugo"]
[Black "Milikow, Elie"]
[Result "0-1"]
[ECO "A28"]
[WhiteElo "2316"]
[BlackElo "2433"]
[Annotator "ChessBase"]
[PlyCount "140"]
[EventDate "2022.07.12"]
[EventType "team-tourn"]
[EventCountry "GRE"]
[SourceTitle "playchess.com"]
[Source "ChessBase"]
[SourceQuality "1"]
[WhiteTeam "Sweden"]
[BlackTeam "Israel"]
[WhiteTeamCountry "SWE"]
[BlackTeamCountry "ISR"]
[TimeControl "40/5400+30:1800+30"]

1. c4 {[%emt 0:00:08]} Nf6 {[%emt 0:00:11]} 2. Nc3 {[%emt 0:00:13]} e5 {[%emt 0:00:18]} 3. Nf3 {[%emt 0:00:19]} Nc6 {[%emt 0:00:37]} 4. e4 {[%emt 0:00:14]} Bb4 {[%emt 0:00:45]} 5. d3 {[%emt 0:01:15]} d6 {[%emt 0:00:10]} 6. a3 {[%emt 0:00:25]} Ba5 {[%emt 0:00:58]} 7. b4 {[%emt 0:06:16]} Bb6 8. Be2 Nd4 9. Be3 c6 10. O-O O-O {[%emt 1:28:23]} 11. Na4 {[%emt 1:17:10]} Nxf3+ {[%emt 0:00:30]} 12. Bxf3 {[%emt 0:00:30]} Bd4 {[%emt 0:00:30]} 13. Rc1 {[%emt 0:00:30]} Ne8 {[%emt 0:00:30]} 14. Nc3 {[%emt 0:00:30]} a5 {[%emt 0:00:30]} 15. Bxd4 {[%emt 0:00:30]} exd4 {[%emt 0:00:30]} 16. Ne2 {[%emt 0:00:30]} Qf6 {[%emt 0:00:30]} 17. Ng3 {[%emt 0:00:30]} g6 {[%emt 0:00:30]} 18. Bg4 {[%emt 0:00:30]} Bxg4 {[%emt 0:00:30]} 19. Qxg4 {[%emt 0:00:30]} axb4 {[%emt 0:00:30]} 20. axb4 {[%emt 0:00:30]} Ra3 21. Qe2 {[%emt 0:00:30]} Qh4 {[%emt 0:01:00]} 22. Ra1 {[%emt 0:06:48]} Rb3 {[%emt 0:00:47]} 23. Rfb1 {[%emt 0:00:15]} Rxb1+ {[%emt 0:00:21]} 24. Rxb1 {[%emt 0:00:07]} Nc7 {[%emt 0:00:39]} 25. Ra1 {[%emt 0:02:46]} Ne6 {[%emt 0:00:45]} 26. Qf3 {[%emt 0:01:46]} Qg5 {[%emt 0:01:02]} 27. Nf1 {[%emt 0:00:22]} b5 {[%emt 0:02:13]} 28. g3 {[%emt 0:00:49]} bxc4 {[%emt 0:00:51]} 29. dxc4 {[%emt 0:00:06]} Qe5 {[%emt 0:00:51]} 30. Qd3 {[%emt 0:00:49]} Rb8 {[%emt 0:00:19]} 31. f4 {[%emt 0:00:19]} Qh5 {[%emt 0:00:40]} 32. Ra4 {[%emt 0:00:18]} Qg4 {[%emt 0:00:32]} 33. Kf2 {[%emt 0:00:24]} Qh3 {[%emt 0:00:18]} 34. Qd2 {[%emt 0:00:37]} h5 {[%emt 0:00:26]} 35. Ra5 {[%emt 0:00:49]} Re8 {[%emt 0:00:46]} 36. f5 {[%emt 0:00:39]} Ng7 {[%emt 0:00:13]} 37. Qxd4 {[%emt 0:00:16]} Qg4 {[%emt 0:00:47]} 38. Qxd6 {[%emt 0:00:48]} Qxe4 {[%emt 0:00:21]} 39. Qf4 {[%emt 0:00:31]} Qc2+ {[%emt 0:00:44]} 40. Kg1 {[%emt 0:00:00]} Nxf5 {[%emt 0:00:00]} 41. Re5 {[%emt 0:09:34]} Rxe5 {[%emt 0:02:07]} 42. Qxe5 {[%emt 0:00:08]} Qxc4 {[%emt 0:00:27]} 43. Qb8+ {[%emt 0:05:30]} Kh7 {[%emt 0:01:39]} 44. Qf4 {[%emt 0:00:58]} Nd4 {[%emt 0:05:34]} 45. Ne3 {[%emt 0:06:10]} Ne2+ {[%emt 0:05:43]} 46. Kf2 {[%emt 0:02:19]} Qxf4+ {[%emt 0:01:25]} 47. gxf4 {[%emt 0:00:14]} Nxf4 {[%emt 0:00:05]} 48. Nc2 {[%emt 0:01:04]} f5 {[%emt 0:04:17]} 49. Ke3 {[%emt 0:01:15]} Ne6 {[%emt 0:00:36]} 50. Na3 {[%emt 0:02:25]} g5 {[%emt 0:03:37]} 51. Nc4 {[%emt 0:01:53]} Kg7 {[%emt 0:00:18]} 52. Ne5 {[%emt 0:01:47]} c5 {[%emt 0:00:18]} 53. b5 {[%emt 0:01:20]} Nc7 {[%emt 0:00:13]} 54. Kd3 {[%emt 0:01:17]} Nxb5 {[%emt 0:00:10]} 55. Kc4 {[%emt 0:00:11]} Nd6+ {[%emt 0:00:54]} 56. Kxc5 {[%emt 0:00:49]} Ne4+ {[%emt 0:05:46]} 57. Kd4 {[%emt 0:01:06]} g4 {[%emt 0:01:55]} 58. Ke3 {[%emt 0:00:42]} Nc5 {[%emt 0:00:57]} 59. Kf4 {[%emt 0:01:15]} Kf6 {[%emt 0:00:10]} 60. Nc4 {[%emt 0:00:26]} Ne6+ {[%emt 0:01:30]} 61. Kg3 {[%emt 0:00:15]} Kg5 {[%emt 0:00:33]} 62. Ne5 {[%emt 0:00:48]} f4+ {[%emt 0:00:50]} 63. Kf2 {[%emt 0:00:13]} Kf5 {[%emt 0:00:15]} 64. Nf7 {[%emt 0:00:49]} Ng5 {[%emt 0:00:28]} 65. Nd6+ {[%emt 0:00:17]} Ke5 {[%emt 0:00:47]} 66. Nc4+ {[%emt 0:00:16]} Kd4 {[%emt 0:00:07]} 67. Nb6 {[%emt 0:00:32]} Ne4+ {[%emt 0:00:07]} 68. Kf1 {[%emt 0:00:15]} f3 {[%emt 0:00:05]} 69. Nc8 {[%emt 0:00:58]} Ke3 {[%emt 0:00:07]} 70. Ne7 {[%emt 0:00:17]} Nd2+ {[%emt 0:00:10]} 0-1

[Event "EYTCC Open U18 2022"]
[Site "Thessaloniki"]
[Date "2022.07.14"]
[Round "3.8"]
[White "Kochavi, Ori"]
[Black "Soderstrom, Adrian"]
[Result "1-0"]
[ECO "C88"]
[WhiteElo "2364"]
[BlackElo "2292"]
[Annotator "ChessBase"]
[PlyCount "63"]
[EventDate "2022.07.12"]
[EventType "team-tourn"]
[EventCountry "GRE"]
[SourceTitle "playchess.com"]
[Source "ChessBase"]
[SourceQuality "1"]
[WhiteTeam "Israel"]
[BlackTeam "Sweden"]
[WhiteTeamCountry "ISR"]
[BlackTeamCountry "SWE"]
[TimeControl "40/5400+30:1800+30"]

1. e4 {[%emt 0:00:04]} e5 {[%emt 0:00:07]} 2. Nf3 {[%emt 0:00:02]} Nc6 {[%emt 0:00:08]} 3. Bb5 {[%emt 0:00:01]} a6 {[%emt 0:00:11]} 4. Ba4 {[%emt 0:00:02]} Nf6 {[%emt 0:00:23]} 5. O-O {[%emt 0:00:03]} Be7 {[%emt 0:00:15]} 6. Re1 {[%emt 0:00:04]} b5 {[%emt 0:00:09]} 7. Bb3 {[%emt 0:00:01]} O-O {[%emt 0:00:50]} 8. a4 {[%emt 0:00:04]} d5 {[%emt 0:00:54]} 9. axb5 {[%emt 0:00:08]} dxe4 {[%emt 0:00:16]} 10. bxc6 {[%emt 0:00:02]} exf3 {[%emt 0:00:12]} 11. Qxf3 {[%emt 0:00:02]} e4 {[%emt 0:00:08]} 12. Qe2 {[%emt 0:00:03]} Re8 {[%emt 0:00:39]} 13. Nc3 {[%emt 0:32:49]} Bd6 {[%emt 0:00:25]} 14. h3 {[%emt 0:02:25]} Re5 {[%emt 0:00:45]} 15. Ra4 {[%emt 0:17:24]} Bxh3 {[%emt 0:00:39]} 16. Nxe4 {[%emt 0:13:09]} Bg4 {[%emt 0:01:54]} 17. Qe3 {[%emt 0:00:05]} Bf5 {[%emt 0:14:56]} 18. d3 {[%emt 0:02:16]} Ng4 {[%emt 0:13:00]} 19. Qg5 {[%emt 0:00:55]} Qc8 {[%emt 0:09:31]} 20. Bf4 {[%emt 0:05:36]} h6 {[%emt 0:08:38]} 21. Qh5 {[%emt 0:00:21]} g6 {[%emt 0:01:08]} 22. Qh3 {[%emt 0:06:46]} Qe8 {[%emt 0:20:05]} 23. Qxg4 {[%emt 0:04:45]} Bxg4 {[%emt 0:14:41]} 24. Nf6+ {[%emt 0:00:04]} Kh8 {[%emt 0:01:12]} 25. Bxe5 {[%emt 0:00:14]} Qxc6 {[%emt 0:01:56]} 26. Nxg4+ {[%emt 0:00:18]} Bxe5 {[%emt 0:00:48]} 27. Nxe5 {[%emt 0:00:05]} Qf6 {[%emt 0:00:36]} 28. Nxf7+ {[%emt 0:00:03]} Kg7 {[%emt 0:00:35]} 29. Rae4 {[%emt 0:00:04]} Rb8 {[%emt 0:04:24]} 30. Re7 {[%emt 0:00:12]} Kf8 {[%emt 0:00:11]} 31. Ne5 {[%emt 0:01:11]} Kxe7 {[%emt 0:02:17]} 32. Ng4+ {[%emt 0:00:05]} 1-0

[Event "EYTCC Open U18 2022"]
[Site "Thessaloniki"]
[Date "2022.07.14"]
[Round "3.9"]
[White "Baum, Jonasz"]
[Black "Borhy, Marcell"]
[Result "1/2-1/2"]
[ECO "B94"]
[WhiteElo "2410"]
[BlackElo "2411"]
[Annotator "ChessBase"]
[PlyCount "62"]
[EventDate "2022.07.12"]
[EventType "team-tourn"]
[EventCountry "GRE"]
[SourceTitle "playchess.com"]
[Source "ChessBase"]
[SourceQuality "1"]
[WhiteTeam "Poland"]
[BlackTeam "Hungary"]
[WhiteTeamCountry "POL"]
[BlackTeamCountry "HUN"]
[TimeControl "40/5400+30:1800+30"]

1. e4 {[%emt 0:00:02]} c5 {[%emt 0:00:09]} 2. Nf3 {[%emt 0:00:05]} d6 {[%emt 0:00:07]} 3. d4 {[%emt 0:00:05]} cxd4 {[%emt 0:00:07]} 4. Nxd4 {[%emt 0:00:04]} Nf6 {[%emt 0:00:06]} 5. Nc3 {[%emt 0:00:04]} a6 {[%emt 0:00:06]} 6. Bg5 {[%emt 0:00:30]} Nbd7 {[%emt 0:00:10]} 7. Qe2 {[%emt 0:00:39]} h6 {[%emt 0:00:55]} 8. Bh4 {[%emt 0:00:29]} g6 {[%emt 0:00:16]} 9. f4 {[%emt 0:00:18]} e5 {[%emt 0:00:09]} 10. fxe5 {[%emt 0:00:30]} dxe5 {[%emt 0:00:07]} 11. O-O-O {[%emt 0:02:04]} Qc7 {[%emt 0:04:35]} 12. Nb3 {[%emt 0:00:07]} b5 {[%emt 0:00:05]} 13. Kb1 {[%emt 0:00:34]} Bb7 {[%emt 0:00:41]} 14. Nd5 {[%emt 0:02:10]} Nxd5 {[%emt 0:00:06]} 15. exd5 {[%emt 0:00:03]} Bd6 {[%emt 0:00:05]} 16. Qd2 {[%emt 0:00:16]} Kf8 {[%emt 0:00:17]} 17. Na5 {[%emt 0:06:41]} Kg7 {[%emt 0:00:25]} 18. g4 {[%emt 0:03:51]} Nb6 {[%emt 0:17:08]} 19. Nxb7 {[%emt 0:10:59]} Qxb7 {[%emt 0:00:06]} 20. Qf2 {[%emt 0:00:34]} Nd7 {[%emt 0:04:50]} 21. Bd3 {[%emt 0:05:05]} Rhf8 {[%emt 0:07:35]} 22. Rhf1 {[%emt 0:08:21]} Qb6 {[%emt 0:07:06]} 23. Qg2 {[%emt 0:10:30]} Rae8 {[%emt 0:03:25]} 24. Be4 {[%emt 0:05:01]} a5 {[%emt 0:14:57]} 25. Rd3 {[%emt 0:02:13]} a4 {[%emt 0:00:45]} 26. Qd2 {[%emt 0:15:46]} b4 {[%emt 0:09:20]} 27. Rh3 {[%emt 0:01:29]} Rh8 {[%emt 0:00:05]} 28. Rhf3 {[%emt 0:07:25]} Rhf8 {[%emt 0:00:17]} 29. Rh3 {[%emt 0:14:04]} Rh8 {[%emt 0:00:11]} 30. Rhf3 {[%emt 0:00:16]} Rhf8 {[%emt 0:00:54]} 31. Rh3 {[%emt 0:04:51]} Rh8 {[%emt 0:03:33]} 1/2-1/2

[Event "EYTCC Open U18 2022"]
[Site "Thessaloniki"]
[Date "2022.07.14"]
[Round "3.10"]
[White "Juhasz, Agoston"]
[Black "Czopor, Maciej"]
[Result "1/2-1/2"]
[ECO "C48"]
[WhiteElo "2344"]
[BlackElo "2415"]
[Annotator "ChessBase"]
[PlyCount "133"]
[EventDate "2022.07.12"]
[EventType "team-tourn"]
[EventCountry "GRE"]
[SourceTitle "playchess.com"]
[Source "ChessBase"]
[SourceQuality "1"]
[WhiteTeam "Hungary"]
[BlackTeam "Poland"]
[WhiteTeamCountry "HUN"]
[BlackTeamCountry "POL"]
[TimeControl "40/5400+30:1800+30"]

1. e4 {[%emt 0:00:02]} e5 {[%emt 0:00:06]} 2. Nf3 {[%emt 0:00:09]} Nc6 {[%emt 0:00:06]} 3. Nc3 {[%emt 0:00:29]} Nf6 {[%emt 0:00:05]} 4. Bb5 {[%emt 0:00:19]} Bd6 {[%emt 0:01:35]} 5. d3 {[%emt 0:00:34]} h6 {[%emt 0:05:58]} 6. a3 {[%emt 0:01:26]} O-O {[%emt 0:01:14]} 7. O-O {[%emt 0:01:41]} Ne7 {[%emt 0:06:57]} 8. d4 {[%emt 0:03:45]} Ng6 {[%emt 0:01:28]} 9. Re1 {[%emt 0:12:41]} Re8 {[%emt 0:05:56]} 10. h3 {[%emt 0:08:05]} a6 {[%emt 0:10:56]} 11. Bf1 {[%emt 0:08:11]} b5 {[%emt 0:00:54]} 12. dxe5 {[%emt 0:22:19]} Nxe5 {[%emt 0:00:20]} 13. Bf4 {[%emt 0:01:05]} Qe7 {[%emt 0:21:40]} 14. Nd5 {[%emt 0:13:19]} Nxd5 {[%emt 0:02:53]} 15. Bxe5 {[%emt 0:01:48]} Bxe5 {[%emt 0:00:46]} 16. Qxd5 {[%emt 0:00:48]} Rb8 {[%emt 0:01:25]} 17. Nxe5 {[%emt 0:02:20]} Qxe5 {[%emt 0:00:04]} 18. Qxe5 {[%emt 0:00:42]} Rxe5 {[%emt 0:00:06]} 19. f4 {[%emt 0:01:04]} Re7 {[%emt 0:00:21]} 20. e5 {[%emt 0:07:15]} Rb6 {[%emt 0:00:48]} 21. Kf2 {[%emt 0:00:38]} Kf8 {[%emt 0:00:33]} 22. Rad1 {[%emt 0:03:58]} f6 {[%emt 0:08:35]} 23. Rd5 {[%emt 0:05:20]} fxe5 {[%emt 0:06:34]} 24. Rdxe5 {[%emt 0:00:31]} Rxe5 {[%emt 0:00:37]} 25. Rxe5 {[%emt 0:00:37]} Rf6 {[%emt 0:00:27]} 26. Re4 {[%emt 0:01:52]} c5 {[%emt 0:03:37]} 27. Kg3 {[%emt 0:00:55]} Bb7 {[%emt 0:05:14]} 28. Re2 {[%emt 0:00:16]} Rg6+ {[%emt 0:05:09]} 29. Kf2 {[%emt 0:00:09]} Rf6 {[%emt 0:00:14]} 30. Kg3 {[%emt 0:01:38]} Rg6+ {[%emt 0:00:08]} 31. Kf2 {[%emt 0:00:52]} Rf6 {[%emt 0:00:51]} 32. Ke3 {[%emt 0:00:00]} Re6+ {[%emt 0:08:00]} 33. Kd2 {[%emt 0:00:36]} Rd6+ {[%emt 0:00:20]} 34. Ke1 {[%emt 0:00:32]} Rf6 {[%emt 0:00:37]} 35. g3 {[%emt 0:00:28]} a5 {[%emt 0:01:44]} 36. c3 {[%emt 0:00:31]} a4 {[%emt 0:00:59]} 37. Re5 {[%emt 0:00:55]} d6 {[%emt 0:00:08]} 38. Re3 {[%emt 0:00:09]} Bc6 {[%emt 0:00:10]} 39. h4 {[%emt 0:00:27]} Rf7 {[%emt 0:01:05]} 40. Bh3 {[%emt 0:00:00]} Re7 {[%emt 0:00:00]} 41. Kd2 {[%emt 0:06:37]} Rxe3 {[%emt 0:02:40]} 42. Kxe3 {[%emt 0:00:04]} Ke7 {[%emt 0:00:09]} 43. g4 {[%emt 0:03:15]} Bd7 {[%emt 0:05:24]} 44. f5 {[%emt 0:02:34]} Bc6 {[%emt 0:02:17]} 45. Kf4 {[%emt 0:00:33]} Kf6 {[%emt 0:00:47]} 46. Bf1 {[%emt 0:01:03]} Bd7 {[%emt 0:02:15]} 47. Be2 {[%emt 0:01:31]} Be8 {[%emt 0:00:47]} 48. Bf3 {[%emt 0:01:17]} Bf7 {[%emt 0:01:21]} 49. Be2 {[%emt 0:03:10]} Be8 {[%emt 0:00:28]} 50. Bd3 {[%emt 0:02:32]} Bc6 {[%emt 0:01:02]} 51. Be4 {[%emt 0:02:56]} Bd7 {[%emt 0:00:59]} 52. Bd5 {[%emt 0:00:32]} Be8 {[%emt 0:00:14]} 53. Bb7 {[%emt 0:02:23]} Bf7 {[%emt 0:01:12]} 54. Bc6 {[%emt 0:03:05]} Bc4 {[%emt 0:00:09]} 55. g5+ {[%emt 0:01:09]} hxg5+ {[%emt 0:00:12]} 56. hxg5+ {[%emt 0:00:02]} Ke7 {[%emt 0:00:43]} 57. Ke4 {[%emt 0:00:18]} Bf1 {[%emt 0:01:10]} 58. Kf4 {[%emt 0:00:10]} Bc4 {[%emt 0:01:15]} 59. Ke3 {[%emt 0:01:28]} Bf1 {[%emt 0:02:11]} 60. Be4 {[%emt 0:00:58]} Bc4 {[%emt 0:03:19]} 61. Bd3 {[%emt 0:03:04]} d5 {[%emt 0:01:13]} 62. Bc2 {[%emt 0:00:47]} Kd6 {[%emt 0:01:13]} 63. Kf4 {[%emt 0:00:34]} Be2 {[%emt 0:01:07]} 64. Bb1 {[%emt 0:00:49]} Bc4 {[%emt 0:01:19]} 65. Bc2 {[%emt 0:00:05]} Be2 {[%emt 0:00:01]} 66. Ke3 {[%emt 0:03:36]} Bc4 {[%emt 0:01:17]} 67. Kf4 {[%emt 0:00:27]} 1/2-1/2

[Event "EYTCC Open U18 2022"]
[Site "Thessaloniki"]
[Date "2022.07.14"]
[Round "3.11"]
[White "Klimkowski, Jan"]
[Black "Palczert, Matyas"]
[Result "1-0"]
[ECO "B90"]
[WhiteElo "2398"]
[BlackElo "2321"]
[Annotator "ChessBase"]
[PlyCount "87"]
[EventDate "2022.07.12"]
[EventType "team-tourn"]
[EventCountry "GRE"]
[SourceTitle "playchess.com"]
[Source "ChessBase"]
[SourceQuality "1"]
[WhiteTeam "Poland"]
[BlackTeam "Hungary"]
[WhiteTeamCountry "POL"]
[BlackTeamCountry "HUN"]
[TimeControl "40/5400+30:1800+30"]

1. e4 {[%emt 0:00:03]} c5 {[%emt 0:00:10]} 2. Nf3 {[%emt 0:00:05]} d6 {[%emt 0:00:11]} 3. d4 {[%emt 0:00:06]} cxd4 {[%emt 0:00:05]} 4. Nxd4 {[%emt 0:00:03]} Nf6 {[%emt 0:00:11]} 5. Nc3 {[%emt 0:00:05]} a6 {[%emt 0:00:12]} 6. Be3 {[%emt 0:00:05]} e6 {[%emt 0:00:15]} 7. a3 {[%emt 0:00:07]} b5 {[%emt 0:01:26]} 8. g4 {[%emt 0:00:18]} Bb7 {[%emt 0:01:04]} 9. Bg2 {[%emt 0:00:14]} Qc7 {[%emt 0:06:57]} 10. g5 {[%emt 0:08:30]} Nfd7 {[%emt 0:00:35]} 11. O-O {[%emt 0:01:23]} Ne5 {[%emt 0:15:53]} 12. f4 {[%emt 0:03:58]} Nc4 {[%emt 0:00:56]} 13. Bc1 {[%emt 0:01:31]} Nc6 {[%emt 0:05:25]} 14. Nce2 {[%emt 0:06:28]} Nxd4 15. Nxd4 {[%emt 0:00:43]} O-O-O {[%emt 0:11:15]} 16. b3 {[%emt 0:06:03]} Nb6 {[%emt 0:01:25]} 17. Bb2 {[%emt 0:01:21]} d5 {[%emt 0:04:00]} 18. e5 {[%emt 0:01:01]} g6 {[%emt 0:02:58]} 19. Rf3 {[%emt 0:04:32]} Kb8 {[%emt 0:02:35]} 20. Bc3 {[%emt 0:00:47]} Nd7 {[%emt 0:07:52]} 21. Qd2 {[%emt 0:01:59]} Bc5 {[%emt 0:01:12]} 22. a4 {[%emt 0:02:19]} bxa4 {[%emt 0:04:33]} 23. Rxa4 {[%emt 0:01:17]} Bb6 {[%emt 0:01:03]} 24. Ba5 {[%emt 0:10:18]} Rc8 {[%emt 0:06:20]} 25. Bxb6 {[%emt 0:02:28]} Nxb6 {[%emt 0:01:14]} 26. Ra5 {[%emt 0:00:42]} Nd7 {[%emt 0:03:51]} 27. Qb4 {[%emt 0:02:55]} Qb6 {[%emt 0:01:15]} 28. Qxb6 {[%emt 0:00:13]} Nxb6 {[%emt 0:00:06]} 29. Bf1 {[%emt 0:01:32]} h6 {[%emt 0:02:49]} 30. Bxa6 {[%emt 0:02:33]} Bxa6 {[%emt 0:01:48]} 31. Rxa6 {[%emt 0:00:10]} Kb7 {[%emt 0:00:10]} 32. Ra2 {[%emt 0:01:39]} hxg5 {[%emt 0:05:28]} 33. fxg5 {[%emt 0:00:10]} Rh7 {[%emt 0:00:15]} 34. Nb5 {[%emt 0:01:39]} Rc5 {[%emt 0:04:23]} 35. Nd6+ {[%emt 0:00:46]} Kb8 {[%emt 0:00:33]} 36. Nxf7 {[%emt 0:01:34]} d4 {[%emt 0:00:32]} 37. Nd8 {[%emt 0:07:25]} Rh8 {[%emt 0:02:01]} 38. Nxe6 {[%emt 0:01:00]} Rxe5 {[%emt 0:00:37]} 39. Nxd4 {[%emt 0:00:09]} Re1+ {[%emt 0:02:04]} 40. Rf1 {[%emt 0:00:00]} Re4 {[%emt 0:00:00]} 41. Nf3 {[%emt 0:02:55]} Nd5 {[%emt 0:03:32]} 42. Ra4 {[%emt 0:01:21]} Re2 {[%emt 0:01:04]} 43. Rd4 {[%emt 0:03:21]} Nc3 {[%emt 0:01:43]} 44. Rb4+ {[%emt 0:00:08]} 1-0

[Event "EYTCC Open U18 2022"]
[Site "Thessaloniki"]
[Date "2022.07.14"]
[Round "3.12"]
[White "Pasztor, Balazs"]
[Black "Seemann, Jakub"]
[Result "1/2-1/2"]
[ECO "B90"]
[WhiteElo "2336"]
[BlackElo "2382"]
[Annotator "ChessBase"]
[PlyCount "79"]
[EventDate "2022.07.12"]
[EventType "team-tourn"]
[EventCountry "GRE"]
[SourceTitle "playchess.com"]
[Source "ChessBase"]
[SourceQuality "1"]
[WhiteTeam "Hungary"]
[BlackTeam "Poland"]
[WhiteTeamCountry "HUN"]
[BlackTeamCountry "POL"]
[TimeControl "40/5400+30:1800+30"]

1. e4 {[%emt 0:00:04]} c5 {[%emt 0:00:13]} 2. Nf3 {[%emt 0:00:05]} d6 {[%emt 0:00:05]} 3. d4 {[%emt 0:00:05]} cxd4 {[%emt 0:00:06]} 4. Nxd4 {[%emt 0:00:06]} Nf6 {[%emt 0:00:15]} 5. Nc3 {[%emt 0:00:07]} a6 {[%emt 0:00:06]} 6. a4 {[%emt 0:00:15]} g6 {[%emt 0:01:32]} 7. a5 {[%emt 0:00:54]} Bg7 {[%emt 0:01:11]} 8. Be2 {[%emt 0:00:28]} O-O {[%emt 0:01:01]} 9. Be3 {[%emt 0:01:17]} Bd7 {[%emt 0:05:13]} 10. O-O {[%emt 0:00:21]} Nc6 {[%emt 0:00:06]} 11. Nb3 {[%emt 0:01:14]} Rc8 {[%emt 0:07:14]} 12. f3 {[%emt 0:12:24]} Ne5 {[%emt 0:08:30]} 13. Nd2 {[%emt 0:24:30]} Be6 {[%emt 0:03:29]} 14. Na4 {[%emt 0:03:53]} Nfd7 {[%emt 0:02:21]} 15. c3 {[%emt 0:04:35]} Kh8 {[%emt 0:09:18]} 16. Kh1 {[%emt 0:03:02]} f5 {[%emt 0:00:29]} 17. exf5 {[%emt 0:03:46]} gxf5 {[%emt 0:02:03]} 18. f4 {[%emt 0:06:20]} Nc4 {[%emt 0:01:28]} 19. Nxc4 {[%emt 0:06:23]} Bxc4 {[%emt 0:00:06]} 20. Nb6 {[%emt 0:01:03]} Nxb6 {[%emt 0:03:15]} 21. Bxb6 {[%emt 0:00:13]} Qd7 {[%emt 0:01:18]} 22. Re1 {[%emt 0:02:32]} Bxe2 {[%emt 0:06:39]} 23. Qxe2 {[%emt 0:02:48]} Rfe8 {[%emt 0:01:17]} 24. Rad1 {[%emt 0:05:33]} Qa4 {[%emt 0:05:45]} 25. Qe6 {[%emt 0:06:29]} Qxf4 {[%emt 0:00:54]} 26. Rf1 {[%emt 0:05:24]} Qe4 {[%emt 0:08:42]} 27. Qxf5 {[%emt 0:01:15]} Qxf5 {[%emt 0:00:07]} 28. Rxf5 {[%emt 0:00:05]} Rf8 {[%emt 0:00:16]} 29. Rff1 {[%emt 0:05:05]} Rxf1+ {[%emt 0:00:31]} 30. Rxf1 {[%emt 0:00:05]} Rc4 {[%emt 0:00:29]} 31. g3 {[%emt 0:00:58]} Bf6 {[%emt 0:01:00]} 32. Kg2 {[%emt 0:01:12]} Kg7 {[%emt 0:00:08]} 33. Kf3 {[%emt 0:00:41]} Kf7 {[%emt 0:01:29]} 34. Ke3 {[%emt 0:00:15]} Ke6 {[%emt 0:00:40]} 35. Kd3 {[%emt 0:00:51]} d5 {[%emt 0:02:17]} 36. Re1+ {[%emt 0:00:50]} Kd6 {[%emt 0:00:20]} 37. Rf1 {[%emt 0:00:06]} Ke6 {[%emt 0:12:22]} 38. Re1+ {[%emt 0:00:07]} Kd6 {[%emt 0:00:40]} 39. Rf1 {[%emt 0:00:29]} Ke6 {[%emt 0:00:06]} 40. Re1+ {[%emt 0:00:00]} 1/2-1/2

[Event "EYTCC Open U18 2022"]
[Site "Thessaloniki"]
[Date "2022.07.14"]
[Round "3.13"]
[White "Svane, Frederik"]
[Black "Herega, Nejc"]
[Result "1-0"]
[ECO "A33"]
[WhiteElo "2521"]
[BlackElo "2160"]
[Annotator "ChessBase"]
[PlyCount "65"]
[EventDate "2022.07.12"]
[EventType "team-tourn"]
[EventCountry "GRE"]
[SourceTitle "playchess.com"]
[Source "ChessBase"]
[SourceQuality "1"]
[WhiteTeam "Germany"]
[BlackTeam "Slovenia"]
[WhiteTeamCountry "GER"]
[BlackTeamCountry "SLO"]
[TimeControl "40/5400+30:1800+30"]

1. c4 {[%emt 0:00:02]} c5 {[%emt 0:00:26]} 2. Nf3 {[%emt 0:00:08]} Nf6 {[%emt 0:00:07]} 3. Nc3 {[%emt 0:00:04]} Nc6 {[%emt 0:00:12]} 4. d4 {[%emt 0:00:05]} cxd4 {[%emt 0:01:03]} 5. Nxd4 {[%emt 0:00:05]} e6 {[%emt 0:03:20]} 6. e4 {[%emt 0:00:10]} Bb4 {[%emt 0:01:13]} 7. Nxc6 {[%emt 0:00:04]} bxc6 {[%emt 0:01:17]} 8. Bd3 {[%emt 0:00:05]} e5 {[%emt 0:01:21]} 9. O-O {[%emt 0:00:05]} O-O {[%emt 0:06:42]} 10. h3 {[%emt 0:00:10]} d5 {[%emt 0:06:05]} 11. exd5 {[%emt 0:18:01]} Bxc3 {[%emt 0:03:42]} 12. bxc3 {[%emt 0:00:12]} cxd5 {[%emt 0:06:13]} 13. Bg5 {[%emt 0:01:07]} dxc4 14. Bxc4 {[%emt 0:01:06]} Qxd1 {[%emt 0:21:53]} 15. Rfxd1 {[%emt 0:05:40]} Bf5 {[%emt 0:05:45]} 16. Rac1 {[%emt 0:18:52]} Rac8 {[%emt 0:03:43]} 17. Ba6 {[%emt 0:13:28]} Rc5 {[%emt 0:06:23]} 18. c4 {[%emt 0:00:08]} Be4 {[%emt 0:05:03]} 19. Rd6 {[%emt 0:07:30]} Rb8 {[%emt 0:06:16]} 20. Bb5 {[%emt 0:06:52]} h6 {[%emt 0:04:51]} 21. Be3 {[%emt 0:05:26]} Rc7 {[%emt 0:02:12]} 22. a4 {[%emt 0:00:05]} Kh7 {[%emt 0:04:18]} 23. f4 {[%emt 0:08:51]} Nh5 {[%emt 0:04:00]} 24. fxe5 {[%emt 0:01:35]} Ng3 {[%emt 0:00:10]} 25. Re1 {[%emt 0:00:47]} Nf5 {[%emt 0:00:48]} 26. Bf4 {[%emt 0:00:03]} g5 {[%emt 0:01:41]} 27. Bh2 {[%emt 0:01:52]} Re7 {[%emt 0:00:54]} 28. Rf6 {[%emt 0:00:37]} Bc2 {[%emt 0:00:47]} 29. e6 {[%emt 0:01:19]} Rf8 {[%emt 0:02:13]} 30. Rxf5 {[%emt 0:00:52]} Bxf5 {[%emt 0:00:26]} 31. Bd6 {[%emt 0:00:03]} Rfe8 {[%emt 0:00:41]} 32. Bxe8 {[%emt 0:00:05]} Rxe8 {[%emt 0:00:03]} 33. exf7 {[%emt 0:00:06]} 1-0